bitfinex/quotes_BTCUSD_20220303
["timestamp","ask_amount","ask_price","bid_price","bid_amount"]
[1646336060830,0.025,42365.0,42358.0,0.0001666]
[1646336061028,0.025,42365.0,42358.0,0.0002499]
[1646336061427,0.025,42365.0,42358.0,0.0001666]
[1646336061628,0.025,42365.0,42357.0,0.0996241]
[1646336061828,0.025,42365.0,42358.0,0.059056]
[1646336062028,0.025,42365.0,42359.0,8.329e-05]
[1646336062428,0.025,42365.0,42359.0,0.00024987]
[1646336062631,0.059064,42361.0,42359.0,0.00024987]
[1646336063030,0.059064,42361.0,42359.0,0.00016658]
[1646336063275,0.059064,42361.0,42356.0,0.00121669]
[1646336063475,0.059064,42361.0,42358.0,0.00015059]
[1646336063674,0.059064,42361.0,42358.0,0.00030118]
[1646336063875,0.23850128,42361.0,42358.0,0.00045177]
[1646336064074,0.059064,42361.0,42358.0,0.00045177]
[1646336064277,0.059064,42361.0,42358.0,0.00030118]
[1646336064474,0.059064,42361.0,42358.0,0.00015059]
[1646336064676,0.059064,42361.0,42357.0,0.00012048]
[1646336065076,0.059064,42361.0,42357.0,0.00024096]
[1646336065275,0.059064,42361.0,42357.0,0.00036144]
[1646336065677,0.106364,42361.0,42357.0,0.00024096]
[1646336065878,0.106364,42361.0,42357.0,0.00012048]
[1646336066079,0.106364,42361.0,42356.0,0.00121669]
[1646336066280,0.106364,42361.0,42357.0,8.289e-05]
[1646336066478,0.106364,42361.0,42357.0,0.00016578]
[1646336066677,0.106364,42361.0,42357.0,0.00024867]
[1646336067124,0.106364,42361.0,42357.0,0.00016578]
[1646336067326,0.106364,42361.0,42357.0,8.289e-05]
[1646336067628,0.106364,42361.0,42356.0,0.00121669]
[1646336067826,0.106364,42361.0,42357.0,8.289e-05]
[1646336068029,0.106364,42361.0,42357.0,0.00016578]
[1646336068225,0.106364,42361.0,42357.0,0.00024867]
[1646336068425,0.033064,42361.0,42357.0,0.00024867]
[1646336068629,0.002,42366.0,42361.0,0.3609]
[1646336068828,0.002,42366.0,42365.0,0.0996241]
[1646336069026,0.002,42366.0,42365.0,0.3996241]
[1646336069427,0.002,42366.0,42365.0,0.0996241]
[1646336069826,0.002,42366.0,42365.0,0.4605241]
[1646336070126,0.002,42366.0,42365.0,0.7605241]
[1646336070535,0.1530876,42371.0,42365.0,0.7605241]
[1646336070536,0.00040151,42379.0,42369.0,0.02361]
[1646336070797,0.001,42405.0,42378.0,0.0996241]
[1646336070798,0.3105,42403.0,42378.0,0.0996241]
[1646336070992,0.3355,42403.0,42386.0,0.0996241]
[1646336071194,0.2162,42403.0,42387.0,0.3]
[1646336071392,0.06615612,42395.0,42388.0,0.059017]
[1646336071594,0.06615612,42395.0,42391.0,0.0996241]
[1646336071792,0.06615612,42395.0,42392.0,0.5]
[1646336071991,0.11803995,42397.0,42392.0,0.8]
[1646336072393,0.11803995,42397.0,42396.0,0.0996241]
[1646336072592,0.001,42405.0,42396.0,0.3996241]
[1646336072896,0.001,42405.0,42397.0,0.3609]
[1646336073095,0.001,42405.0,42400.0,0.0996241]
[1646336073292,0.001,42405.0,42401.0,0.3]
[1646336074294,0.001,42405.0,42401.0,0.8]
[1646336075635,0.001,42405.0,42401.0,0.806]
[1646336075831,0.001,42405.0,42401.0,1.1669]
[1646336076233,0.001,42405.0,42401.0,0.806]
[1646336076632,0.001,42405.0,42401.0,1.1669]
[1646336076831,0.001,42405.0,42401.0,1.1609]
[1646336077433,0.001,42405.0,42401.0,1.1559]
[1646336077637,0.001,42405.0,42404.0,0.4605241]
[1646336077835,0.001,42405.0,42404.0,0.7605241]
[1646336078032,0.001,42407.0,42405.0,0.3609]
[1646336078278,0.001,42407.0,42406.0,0.6609]
[1646336078478,0.001,42407.0,42406.0,0.3]
[1646336078677,0.001,42407.0,42406.0,0.8]
[1646336079777,0.001,42407.0,42406.0,1.1609]
[1646336079978,0.001,42407.0,42406.0,0.8]
[1646336080981,0.001,42407.0,42406.0,0.5]
[1646336082026,0.09099175,42406.0,42405.0,0.94769193]
[1646336082228,0.001,42407.0,42405.0,1.44769193]
[1646336082426,0.001,42407.0,42406.0,0.3]
[1646336082828,0.001,42407.0,42405.0,1.04731603]
[1646336083025,0.001,42407.0,42406.0,0.3]
[1646336083428,0.002,42408.0,42406.0,0.3]
[1646336085226,0.001,42409.0,42406.0,0.3]
[1646336085529,0.0001363,42409.0,42405.0,1.04731603]
[1646336085777,0.0004089,42409.0,42405.0,0.0996241]
[1646336086078,0.0004089,42409.0,42403.0,0.11797]
[1646336086079,0.0001363,42409.0,42403.0,0.11797]
[1646336086277,0.1860501,42404.0,42403.0,0.11797]
[1646336086477,0.09381184,42407.0,42403.0,0.5]
[1646336086676,0.20699783,42408.0,42403.0,0.5]
[1646336086879,0.20699783,42408.0,42400.0,0.059007]
[1646336087080,0.00015449,42408.0,42400.0,0.059007]
[1646336087278,0.00046347,42408.0,42400.0,0.059007]
[1646336087677,0.00030898,42408.0,42400.0,0.059007]
[1646336087878,0.00015449,42408.0,42400.0,0.059007]
[1646336088082,0.12067108,42409.0,42400.0,0.059007]
[1646336088279,0.2104452,42404.0,42400.0,0.059007]
[1646336088480,0.00012698,42406.0,42400.0,0.059007]
[1646336088683,0.00038094,42406.0,42400.0,0.059007]
[1646336089280,0.00012698,42406.0,42400.0,0.059007]
[1646336089526,0.12067108,42409.0,42400.0,0.066007]
[1646336089726,0.00012619,42406.0,42400.0,0.066007]
[1646336089928,0.00025238,42406.0,42400.0,0.066007]
[1646336090126,0.00037857,42406.0,42400.0,0.066007]
[1646336090328,0.00037857,42406.0,42405.0,0.0996241]
[1646336090530,0.00025238,42406.0,42405.0,0.3996241]
[1646336090725,0.00012619,42406.0,42405.0,0.3996241]
[1646336090928,0.001,42412.0,42405.0,0.3996241]
[1646336091126,0.00012619,42408.0,42405.0,0.3996241]
[1646336091331,0.00025238,42408.0,42405.0,0.3996241]
[1646336091525,0.00037857,42408.0,42405.0,0.4056241]
[1646336091926,0.00025238,42408.0,42405.0,0.4056241]
[1646336092126,0.00012619,42408.0,42405.0,0.4056241]
[1646336092326,0.001,42412.0,42405.0,0.4056241]
[1646336092528,0.00014882,42409.0,42405.0,0.4056241]
[1646336092828,0.00044646,42409.0,42405.0,0.3996241]
[1646336093278,0.00029764,42409.0,42405.0,0.3996241]
[1646336093473,0.00014882,42409.0,42405.0,0.3996241]
[1646336093673,0.001,42412.0,42408.0,0.0633442]
[1646336094076,0.001,42412.0,42411.0,0.4605241]
[1646336094275,0.001,42412.0,42411.0,0.7605241]
[1646336094475,0.001,42412.0,42411.0,0.3996241]
[1646336095074,0.001,42412.0,42411.0,0.7605241]
[1646336095277,0.001,42412.0,42411.0,0.3996241]
[1646336095476,0.001,42412.0,42411.0,0.7605241]
[1646336095674,0.001,42412.0,42411.0,0.4605241]
[1646336096482,0.001,42412.0,42411.0,0.3996241]
[1646336096676,0.001,42412.0,42411.0,0.7605241]
[1646336097127,0.001,42412.0,42407.0,0.2175741]
[1646336097324,0.001,42412.0,42409.0,0.18278733]
[1646336097524,0.001,42412.0,42407.0,0.05899711]
[1646336097924,0.001,42412.0,42408.0,0.3]
[1646336098527,0.001,42412.0,42409.0,0.3609]
[1646336098724,0.00124508,42412.0,42408.0,0.3]
[1646336098924,0.00136762,42412.0,42408.0,0.3]
[1646336099329,0.00124508,42412.0,42408.0,0.3]
[1646336099530,0.00112254,42412.0,42410.0,0.0996241]
[1646336099728,0.001,42412.0,42411.0,0.6609]
[1646336100027,0.001,42412.0,42411.0,0.3]
[1646336100230,0.00124838,42412.0,42411.0,0.3]
[1646336100428,0.00137257,42412.0,42411.0,0.6609]
[1646336100674,0.0041,42415.0,42411.0,0.3]
[1646336100675,0.0021,42415.0,42411.0,0.3]
[1646336100881,0.0021,42415.0,42414.0,0.43021621]
[1646336101079,0.0021,42415.0,42414.0,0.36931621]
[1646336101378,0.0021,42415.0,42414.0,0.3]
[1646336101581,0.0021,42415.0,42414.0,0.6609]
[1646336102179,0.0021,42415.0,42414.0,0.3]
[1646336102379,0.0021,42415.0,42414.0,0.6609]
[1646336102781,0.0021,42415.0,42414.0,0.48278733]
[1646336103081,0.0021,42415.0,42414.0,0.6609]
[1646336104082,0.0021,42415.0,42414.0,0.84368733]
[1646336104286,0.0021,42415.0,42414.0,0.6609]
[1646336104532,0.0021,42415.0,42414.0,0.48278733]
[1646336104731,0.0021,42415.0,42414.0,0.3]
[1646336104932,0.0021,42415.0,42414.0,0.6609]
[1646336105334,0.0021,42415.0,42414.0,0.63966294]
[1646336106835,0.0021,42415.0,42413.0,0.34138678]
[1646336107041,0.0021,42415.0,42414.0,0.3609]
[1646336107633,0.0021,42415.0,42414.0,0.3649]
[1646336108494,0.0021,42415.0,42414.0,0.004]
[1646336108993,0.0021,42415.0,42413.0,0.3609]
[1646336109194,0.0021,42415.0,42414.0,0.3609]
[1646336109397,0.0021,42415.0,42413.0,0.3609]
[1646336109995,0.0021,42415.0,42414.0,0.3609]
[1646336110495,0.0021,42415.0,42414.0,0.42580341]
[1646336110896,0.0021,42415.0,42414.0,0.3609]
[1646336112731,0.0021,42415.0,42411.0,0.3609]
[1646336113331,0.0021,42415.0,42412.0,0.3609]
[1646336113531,0.0021,42415.0,42413.0,0.3609]
[1646336113834,0.0021,42415.0,42412.0,0.3609]
[1646336114030,0.0021,42415.0,42413.0,0.3609]
[1646336114232,0.08865244,42413.0,42411.0,0.005]
[1646336114930,0.08865244,42413.0,42405.0,0.0996241]
[1646336115131,0.08865244,42413.0,42406.0,0.3609]
[1646336115695,0.04771169,42414.0,42408.0,0.3609]
[1646336115892,0.04771169,42414.0,42408.0,0.4605241]
[1646336116094,0.00041169,42414.0,42413.0,0.0996241]
[1646336116297,0.00027446,42414.0,42413.0,0.4605241]
[1646336116492,0.00013723,42414.0,42413.0,0.51511192]
[1646336116792,0.0021,42415.0,42413.0,0.1550524]
[1646336116991,0.0021,42415.0,42414.0,0.3609]
[1646336121530,0.0021,42415.0,42414.0,0.64040841]
[1646336121733,0.002,42416.0,42415.0,0.3651]
[1646336123782,0.002,42416.0,42415.0,0.3711]
[1646336124981,0.002,42416.0,42415.0,0.3651]
[1646336128031,0.002,42416.0,42415.0,0.0042]
[1646336128232,0.002,42416.0,42415.0,0.3651]
[1646336129632,0.002,42416.0,42415.0,0.3701]
[1646336130879,0.002,42416.0,42415.0,0.3651]
[1646336131683,0.002,42416.0,42415.0,0.3701]
[1646336132886,0.002,42416.0,42415.0,0.3651]
[1646336133083,0.17112343,42416.0,42415.0,0.0042]
[1646336133282,0.17112343,42416.0,42415.0,0.3651]
[1646336133480,0.27073943,42416.0,42415.0,0.3651]
[1646336133681,0.28380411,42416.0,42415.0,0.3651]
[1646336133884,0.102616,42416.0,42415.0,0.3651]
[1646336134928,0.101616,42416.0,42415.0,0.3651]
[1646336135730,0.102616,42416.0,42415.0,0.3651]
[1646336136730,0.003,42416.0,42415.0,0.3651]
[1646336136930,0.002,42416.0,42415.0,0.0042]
[1646336137729,0.002,42416.0,42415.0,0.0082]
[1646336138382,0.002,42416.0,42415.0,0.3691]
[1646336138580,0.002,42416.0,42415.0,0.4687241]
[1646336138780,0.002,42416.0,42415.0,0.75784106]
[1646336139080,0.002,42416.0,42415.0,0.75384106]
[1646336139680,0.002,42416.0,42415.0,0.76168154]
[1646336140686,0.002,42416.0,42415.0,0.76084106]
[1646336140890,0.002,42416.0,42415.0,0.75384106]
[1646336141085,0.002,42416.0,42415.0,0.4647241]
[1646336141784,0.002,42416.0,42415.0,0.47156458]
[1646336142230,0.002,42416.0,42415.0,0.4707241]
[1646336142631,0.002,42416.0,42415.0,0.47156458]
[1646336142830,0.002,42416.0,42415.0,0.4707241]
[1646336143034,0.002,42416.0,42415.0,0.4647241]
[1646336143432,0.002,42416.0,42415.0,0.46556458]
[1646336143631,0.002,42416.0,42415.0,0.4647241]
[1646336143832,0.002,42416.0,42415.0,0.4707241]
[1646336144432,0.002,42416.0,42415.0,0.47065582]
[1646336144834,0.002,42416.0,42415.0,0.37103172]
[1646336145035,0.002,42416.0,42415.0,0.00413172]
[1646336145783,0.002,42416.0,42415.0,0.00713172]
[1646336145981,0.0493,42416.0,42415.0,0.00713172]
[1646336146981,0.0493,42416.0,42415.0,0.00413172]
[1646336147784,0.0513,42416.0,42415.0,0.00413172]
[1646336149083,0.0493,42416.0,42415.0,0.00413172]
[1646336149727,0.0503,42416.0,42415.0,0.00413172]
[1646336149931,0.00096828,42406.0,42405.0,0.75285981]
[1646336150133,0.00198828,42411.0,42406.0,0.3609]
[1646336160534,0.00198828,42411.0,42403.0,0.1219]
[1646336160781,0.0473,42410.0,42401.0,0.007]
[1646336160983,0.19658414,42404.0,42402.0,0.3609]
[1646336161283,0.16067706,42403.0,42402.0,0.3609]
[1646336161683,0.11942933,42406.0,42399.0,0.3609]
[1646336161881,0.0473,42407.0,42399.0,0.3609]
[1646336162682,0.00198828,42411.0,42403.0,0.00084048]
[1646336162881,0.00198828,42411.0,42404.0,0.3609]
[1646336163082,0.00198828,42411.0,42404.0,0.65350209]
[1646336163887,0.00198828,42411.0,42404.0,0.425885]
[1646336164281,0.00198828,42411.0,42404.0,0.5255091]
[1646336164935,0.00198828,42411.0,42410.0,0.0996241]
[1646336165139,0.00126457,42414.0,42411.0,0.0589038]
[1646336165140,0.00117638,42414.0,42411.0,0.0589038]
[1646336165339,0.00117638,42414.0,42413.0,0.0996241]
[1646336165340,0.00108819,42414.0,42413.0,0.0996241]
[1646336165537,0.001,42414.0,42413.0,0.7605241]
[1646336165735,0.001,42414.0,42413.0,0.3996241]
[1646336165936,0.00108819,42414.0,42413.0,0.7605241]
[1646336166135,0.00126457,42414.0,42413.0,0.7605241]
[1646336166336,0.00126457,42414.0,42413.0,0.4605241]
[1646336166540,0.00117638,42414.0,42413.0,0.3609]
[1646336166737,0.00108819,42414.0,42413.0,0.3609]
[1646336166937,0.001,42414.0,42413.0,0.3609]
[1646336167536,0.001,42414.0,42410.0,0.3]
[1646336167735,0.001,42414.0,42413.0,0.006]
[1646336169089,0.24599558,42415.0,42409.0,0.0996241]
[1646336169288,0.08428464,42415.0,42410.0,0.3609]
[1646336169488,0.08428464,42415.0,42410.0,0.6609]
[1646336169888,0.08428464,42415.0,42412.0,0.3609]
[1646336170087,0.08428464,42415.0,42409.0,0.1056241]
[1646336170288,0.19133537,42414.0,42409.0,0.1056241]
[1646336170489,0.08446098,42415.0,42409.0,0.1056241]
[1646336170688,0.24976554,42415.0,42409.0,0.1056241]
[1646336170888,0.08454915,42415.0,42409.0,0.1056241]
[1646336171088,0.08454915,42415.0,42410.0,0.3609]
[1646336171288,0.08437281,42415.0,42409.0,0.0996241]
[1646336171488,0.08428464,42415.0,42409.0,0.0996241]
[1646336171951,0.08446098,42415.0,42410.0,0.006]
[1646336172151,0.08454915,42415.0,42410.0,0.006]
[1646336172554,0.08446098,42415.0,42410.0,0.006]
[1646336172752,0.08437281,42415.0,42410.0,0.006]
[1646336172954,8.817e-05,42415.0,42411.0,0.3609]
[1646336173151,0.0031,42416.0,42409.0,0.0996241]
[1646336173353,8.817e-05,42415.0,42410.0,0.3]
[1646336173552,0.00017634,42415.0,42409.0,0.0996241]
[1646336173751,0.00017634,42415.0,42411.0,0.3609]
[1646336173752,0.00026451,42415.0,42411.0,0.3609]
[1646336173954,0.00017634,42415.0,42410.0,0.3]
[1646336174151,8.817e-05,42415.0,42410.0,0.3]
[1646336174354,0.0031,42416.0,42410.0,0.3]
[1646336174953,0.00026068,42415.0,42411.0,0.3609]
[1646336175154,0.00039102,42415.0,42412.0,0.3609]
[1646336175554,0.00026068,42415.0,42412.0,0.3609]
[1646336175779,0.0031,42416.0,42413.0,0.3609]
[1646336175981,0.0031,42416.0,42412.0,0.005]
[1646336176187,0.22888936,42415.0,42412.0,0.005]
[1646336176381,0.25,42414.0,42412.0,0.005]
[1646336176581,0.0473,42413.0,42412.0,0.005]
[1646336176984,0.13585141,42413.0,42412.0,0.005]
[1646336177184,0.059001,42410.0,42402.0,0.3]
[1646336177383,0.059001,42410.0,42401.0,0.13198]
[1646336177384,0.21644519,42405.0,42401.0,0.13198]
[1646336177583,0.21644519,42405.0,42401.0,0.01178]
[1646336177784,0.21644519,42405.0,42397.0,0.3]
[1646336177785,0.21644519,42405.0,42398.0,0.00052156]
[1646336177983,0.21644519,42405.0,42398.0,0.00104312]
[1646336178182,0.21644519,42405.0,42398.0,0.00156468]
[1646336178183,0.10614127,42404.0,42398.0,0.00156468]
[1646336178383,0.10614127,42404.0,42399.0,0.3609]
[1646336178584,0.20002698,42401.0,42398.0,0.00156468]
[1646336178784,0.10614127,42404.0,42398.0,0.00104312]
[1646336178987,0.10614127,42404.0,42397.0,0.006]
[1646336179931,0.16788256,42402.0,42397.0,0.011]
[1646336181032,0.16788256,42402.0,42397.0,0.005]
[1646336181230,0.16788256,42402.0,42392.0,0.0996241]
[1646336181831,0.16788256,42402.0,42392.0,0.1066241]
[1646336182034,0.16788256,42402.0,42395.0,0.00015272]
[1646336182432,0.16788256,42402.0,42395.0,0.00030544]
[1646336182632,0.16788256,42402.0,42395.0,0.00045816]
[1646336183033,0.35614127,42404.0,42395.0,0.00030544]
[1646336183284,0.10614127,42404.0,42395.0,0.00015272]
[1646336183986,0.10614127,42404.0,42395.0,0.00545816]
[1646336184386,0.10614127,42404.0,42395.0,0.00530544]
[1646336184588,0.10614127,42404.0,42395.0,0.00515272]
[1646336184786,0.32094914,42404.0,42395.0,0.00512113]
[1646336185186,0.27753191,42404.0,42395.0,0.00024226]
[1646336185387,0.27753191,42404.0,42395.0,0.00036339]
[1646336185787,0.27753191,42404.0,42395.0,0.00624226]
[1646336185986,0.27753191,42404.0,42395.0,0.006]
[1646336186186,0.27753191,42404.0,42395.0,0.00608504]
[1646336186592,0.27753191,42404.0,42395.0,0.00625512]
[1646336187034,0.27753191,42404.0,42395.0,0.00025512]
[1646336187237,0.27753191,42404.0,42395.0,8.504e-05]
[1646336187435,0.21128356,42401.0,42394.0,0.3]
[1646336187637,0.21128356,42401.0,42395.0,8.504e-05]
[1646336187835,0.21128356,42401.0,42395.0,0.00617008]
[1646336188036,0.21128356,42401.0,42395.0,0.00625512]
[1646336188435,0.21128356,42401.0,42395.0,0.00617008]
[1646336188635,0.21128356,42401.0,42395.0,0.00608504]
[1646336188835,0.21128356,42401.0,42395.0,0.006]
[1646336189036,0.21128356,42401.0,42392.0,0.0996241]
[1646336189637,0.059009,42402.0,42392.0,0.0996241]
[1646336189839,0.059009,42402.0,42392.0,0.1056241]
[1646336190238,0.059009,42402.0,42395.0,0.00013272]
[1646336190441,0.10614127,42404.0,42395.0,0.09975682]
[1646336190727,0.30283619,42404.0,42395.0,0.10002226]
[1646336190923,0.10614127,42404.0,42395.0,0.10002226]
[1646336191325,0.19931108,42403.0,42395.0,0.09975682]
[1646336191524,0.10614127,42404.0,42396.0,0.3609]
[1646336191727,0.10614127,42404.0,42395.0,0.0996241]
[1646336191923,0.10614127,42404.0,42395.0,0.1046241]
[1646336192627,0.17361958,42402.0,42395.0,0.005]
[1646336193226,0.17361958,42402.0,42392.0,0.0996241]
[1646336193824,0.17361958,42402.0,42392.0,0.1066241]
[1646336194225,0.17361958,42402.0,42395.0,0.0001617]
[1646336194636,0.31890877,42404.0,42395.0,0.0003234]
[1646336194831,0.31890877,42404.0,42395.0,0.0004851]
[1646336195236,0.31890877,42404.0,42395.0,0.0003234]
[1646336195432,0.31890877,42404.0,42395.0,0.0001617]
[1646336195634,0.18387155,42403.0,42396.0,0.0001617]
[1646336195834,0.31890877,42404.0,42396.0,0.0001617]
[1646336196133,0.059009,42402.0,42396.0,0.0004851]
[1646336196732,0.059009,42402.0,42396.0,0.0001617]
[1646336196932,0.059009,42402.0,42395.0,0.005]
[1646336197132,0.059009,42402.0,42396.0,0.00012273]
[1646336197332,0.059009,42402.0,42396.0,0.00024546]
[1646336197532,0.059009,42402.0,42396.0,0.00036819]
[1646336197936,0.059009,42402.0,42396.0,0.00524546]
[1646336198183,0.059009,42402.0,42396.0,0.005]
[1646336198383,0.059009,42402.0,42396.0,0.00508403]
[1646336198784,0.059009,42402.0,42396.0,0.00525209]
[1646336198987,0.21213186,42400.0,42396.0,0.00525209]
[1646336199184,0.059009,42402.0,42396.0,0.00025209]
[1646336199384,0.059009,42402.0,42396.0,0.00016806]
[1646336199583,0.059009,42402.0,42392.0,0.0996241]
[1646336199784,0.059009,42402.0,42396.0,8.403e-05]
[1646336200086,0.059009,42402.0,42396.0,0.00516806]
[1646336200287,0.059015,42397.0,42396.0,0.00525209]
[1646336200686,0.059015,42397.0,42396.0,0.00516806]
[1646336200884,0.059015,42397.0,42396.0,0.00508403]
[1646336201085,0.106315,42397.0,42396.0,0.005]
[1646336201285,0.21191764,42397.0,42396.0,0.005]
[1646336201488,0.95,42396.0,42394.0,0.00016808]
[1646336201687,0.165373,42395.0,42394.0,0.00025212]
[1646336202134,0.165373,42395.0,42394.0,0.00016808]
[1646336202335,0.165373,42395.0,42388.0,0.00033619]
[1646336202538,0.28634547,42389.0,42379.0,0.1233]
[1646336202740,0.15237086,42386.0,42379.0,0.1233]
[1646336202937,0.0473,42386.0,42379.0,0.1233]
[1646336203141,0.0473,42386.0,42378.0,0.4494]
[1646336203937,0.0473,42386.0,42380.0,0.00014387]
[1646336204137,0.19083812,42385.0,42380.0,0.00014387]
[1646336204338,0.0473,42386.0,42380.0,0.00043161]
[1646336204539,0.059034,42384.0,42380.0,0.00043161]
[1646336204741,0.05891089,42384.0,42380.0,0.00043161]
[1646336204940,0.05891089,42384.0,42380.0,0.00028774]
[1646336205139,0.05891089,42384.0,42378.0,0.4494]
[1646336205341,0.05891089,42384.0,42380.0,0.00013489]
[1646336205831,0.21365682,42383.0,42380.0,0.00040467]
[1646336206028,0.05891089,42384.0,42380.0,0.00040467]
[1646336206228,0.05891089,42384.0,42380.0,0.00026978]
[1646336206428,0.05891089,42384.0,42380.0,0.00013489]
[1646336206629,0.05891089,42384.0,42380.0,0.00011658]
[1646336207128,0.05891089,42384.0,42380.0,0.00023316]
[1646336207529,0.05891089,42384.0,42380.0,0.00034974]
[1646336207729,0.05891089,42384.0,42380.0,0.00011658]
[1646336207929,0.05891089,42384.0,42380.0,0.006]
[1646336208129,0.05891089,42384.0,42380.0,0.00611658]
[1646336208530,0.05891089,42384.0,42380.0,0.00634974]
[1646336209130,0.05891089,42384.0,42380.0,0.00023316]
[1646336209331,0.05891089,42384.0,42376.0,0.0996241]
[1646336209539,0.05891089,42384.0,42380.0,0.00013028]
[1646336209739,0.05891089,42384.0,42380.0,0.00026056]
[1646336209943,0.05891089,42384.0,42380.0,0.00039084]
[1646336210547,0.05891089,42384.0,42380.0,0.00013028]
[1646336210746,0.05891089,42384.0,42376.0,0.0996241]
[1646336210945,0.05891089,42384.0,42380.0,0.00013028]
[1646336211142,0.05891089,42384.0,42380.0,0.00026056]
[1646336211343,0.05891089,42384.0,42380.0,0.10001494]
[1646336211546,0.0473,42388.0,42381.0,0.4605241]
[1646336211743,0.6423,42395.0,42385.0,0.0996241]
[1646336211943,0.5,42395.0,42385.0,0.0996241]
[1646336212343,0.5,42395.0,42388.0,0.00013819]
[1646336212541,0.1710248,42393.0,42388.0,0.00013819]
[1646336212742,0.2300448,42393.0,42388.0,0.00041457]
[1646336213183,0.2300448,42393.0,42388.0,0.00027638]
[1646336213385,0.2300448,42393.0,42388.0,0.00013819]
[1646336213589,0.2300448,42393.0,42381.0,0.0996241]
[1646336213786,0.09041333,42387.0,42381.0,0.0996241]
[1646336213988,0.21692104,42386.0,42383.0,0.003]
[1646336215187,0.09041333,42387.0,42379.0,0.3]
[1646336215188,0.09041333,42387.0,42382.0,0.00011013]
[1646336215590,0.059033,42384.0,42382.0,0.00022026]
[1646336215789,0.059033,42384.0,42382.0,0.00033039]
[1646336215790,0.0473,42383.0,42382.0,0.00033039]
[1646336215989,0.1383,42383.0,42382.0,0.00033039]
[1646336216389,0.31885034,42383.0,42382.0,0.00033039]
[1646336216590,0.31885034,42383.0,42382.0,0.00022026]
[1646336216790,0.31885034,42383.0,42382.0,1.3e-07]
[1646336217040,0.059054,42378.0,42367.0,0.3]
[1646336217237,0.118115,42371.0,42366.0,0.001]
[1646336217436,0.165415,42371.0,42366.0,0.001]
[1646336217636,0.1962504,42370.0,42366.0,0.001]
[1646336217837,0.165415,42371.0,42366.0,0.001]
[1646336218437,0.059058,42368.0,42366.0,0.001]
[1646336219539,0.07137114,42368.0,42366.0,0.001]
[1646336219737,0.20196737,42367.0,42366.0,0.001]
[1646336220682,0.07137114,42368.0,42366.0,0.001]
[1646336221587,0.27970335,42368.0,42366.0,0.001]
[1646336221783,0.32700335,42368.0,42366.0,0.001]
[1646336222584,0.53525086,42368.0,42366.0,0.001]
[1646336223285,0.52325086,42368.0,42366.0,0.001]
[1646336223887,0.52625086,42368.0,42366.0,0.001]
[1646336225242,0.31500335,42368.0,42366.0,0.001]
[1646336226039,0.31800335,42368.0,42366.0,0.001]
[1646336226240,0.52381837,42368.0,42366.0,0.001]
[1646336227741,0.52081837,42368.0,42366.0,0.001]
[1646336227941,0.52381837,42368.0,42366.0,0.001]
[1646336231090,0.52081837,42368.0,42366.0,0.001]
[1646336232540,0.95,42367.0,42362.0,0.00011386]
[1646336232741,0.0473,42366.0,42362.0,0.00011386]
[1646336232942,0.059074,42364.0,42362.0,0.00011386]
[1646336233142,0.0473,42363.0,42362.0,0.00011386]
[1646336233942,0.0503,42363.0,42362.0,0.00011386]
[1646336235142,0.0473,42363.0,42362.0,0.00011386]
[1646336238586,0.1146018,42363.0,42362.0,0.00011386]
[1646336240148,0.0473,42363.0,42362.0,0.00011386]
[1646336240350,0.525,42367.0,42362.0,0.00011386]
[1646336240549,0.525,42367.0,42359.0,0.09506955]
[1646336240748,0.525,42367.0,42360.0,0.3]
[1646336241149,0.525,42367.0,42356.0,0.01355283]
[1646336241349,0.525,42367.0,42362.0,0.09506955]
[1646336241551,0.525,42367.0,42363.0,0.3]
[1646336241751,0.53009325,42371.0,42365.0,0.09506955]
[1646336241752,0.5,42370.0,42365.0,0.09506955]
[1646336241956,0.01231314,42373.0,42366.0,0.6609]
[1646336242151,0.01231314,42373.0,42369.0,0.09506955]
[1646336242350,0.2224,42382.0,42371.0,0.09506955]
[1646336242551,0.2224,42382.0,42372.0,0.3]
[1646336242751,0.20165784,42379.0,42372.0,0.3]
[1646336242951,0.08739367,42380.0,42374.0,0.09506955]
[1646336243192,0.08739367,42380.0,42375.0,0.3]
[1646336244697,0.20418988,42379.0,42375.0,0.3]
[1646336244893,0.08739367,42380.0,42375.0,0.3]
[1646336248642,0.08739367,42380.0,42374.0,0.09506955]
[1646336248840,0.08739367,42380.0,42375.0,0.3]
[1646336249242,0.14643267,42380.0,42375.0,0.3]
[1646336250243,0.14049267,42380.0,42375.0,0.3]
[1646336250442,0.059039,42380.0,42375.0,0.3]
[1646336250692,0.53156216,42389.0,42378.0,0.09506955]
[1646336250894,0.20994144,42389.0,42379.0,0.3]
[1646336251091,0.20982072,42389.0,42379.0,0.3]
[1646336251292,0.21713233,42388.0,42379.0,0.3]
[1646336251492,0.025,42389.0,42379.0,0.3]
[1646336251692,0.25434586,42388.0,42379.0,0.3]
[1646336251890,0.07469198,42386.0,42379.0,0.3]
[1646336252092,0.059034,42384.0,42379.0,0.305]
[1646336252592,0.059034,42384.0,42379.0,0.005]
[1646336253193,0.059034,42384.0,42378.0,0.09506955]
[1646336253995,0.059034,42384.0,42378.0,0.09906955]
[1646336254198,0.10659613,42381.0,42378.0,0.09906955]
[1646336254738,0.059039,42380.0,42378.0,0.09906955]
[1646336255241,0.059039,42380.0,42378.0,0.09506955]
[1646336255639,0.059039,42380.0,42374.0,0.3]
[1646336255841,0.059039,42380.0,42376.0,0.09506955]
[1646336256040,0.059045,42376.0,42373.0,0.09806955]
[1646336256642,0.059045,42376.0,42374.0,0.3609]
[1646336256842,0.059045,42376.0,42374.0,0.356769]
[1646336257049,0.17736197,42375.0,42373.0,0.003]
[1646336257246,0.17736197,42375.0,42368.0,0.09506955]
[1646336257247,0.118107,42374.0,42368.0,0.09506955]
[1646336257448,0.059055,42369.0,42368.0,0.09506955]
[1646336257645,0.059055,42369.0,42365.0,0.3]
[1646336257844,0.059055,42369.0,42362.0,0.3]
[1646336258046,0.17030189,42369.0,42363.0,0.002]
[1646336258289,0.062055,42369.0,42363.0,0.002]
[1646336258491,0.003,42369.0,42364.0,0.09506955]